[Event "Early-Titled-Tuesday-Blitz-December-26-2023"]
[Site "Chess.com"]
[Date "2023.12.26"]
[Round "10"]
[White "CFalcons8"]
[Black "LileKoridze"]
[Result "0-1"]
[WhiteElo "2227"]
[BlackElo "2386"]
[TimeControl "180+1"]
[EndTime "9:55:59 PST"]
[Termination "LileKoridze won by resignation"]

1. d4 {[%clk 0:03:00.9]} 1... Nf6 {[%clk 0:03:00]} 2. Nf3 {[%clk 0:02:59.2]}
2... d5 {[%clk 0:03:00.2]} 3. c4 {[%clk 0:02:58.4]} 3... e6 {[%clk 0:03:00.6]}
4. g3 {[%clk 0:02:57.3]} 4... Bb4+ {[%clk 0:03:00.2]} 5. Bd2 {[%clk 0:02:56.4]}
5... Be7 {[%clk 0:02:59.3]} 6. Bg2 {[%clk 0:02:54.5]} 6... O-O {[%clk
0:02:59.7]} 7. Qc2 {[%clk 0:02:53.1]} 7... c6 {[%clk 0:02:59.5]} 8. b3 {[%clk
0:02:52]} 8... b6 {[%clk 0:02:59.3]} 9. Nc3 {[%clk 0:02:47.1]} 9... Bb7 {[%clk
0:02:59.1]} 10. O-O {[%clk 0:02:43.3]} 10... Nbd7 {[%clk 0:02:59.2]} 11. e4
{[%clk 0:02:41.4]} 11... dxe4 {[%clk 0:02:59.3]} 12. Nxe4 {[%clk 0:02:42.3]}
12... Nxe4 {[%clk 0:02:59.5]} 13. Qxe4 {[%clk 0:02:43.2]} 13... Nf6 {[%clk
0:02:59.9]} 14. Qe2 {[%clk 0:02:42.3]} 14... Qc8 {[%clk 0:02:59.8]} 15. Bc3
{[%clk 0:02:41.1]} 15... Rd8 {[%clk 0:02:59.5]} 16. Rac1 {[%clk 0:02:37.6]}
16... c5 {[%clk 0:02:59.7]} 17. Rfd1 {[%clk 0:02:31.4]} 17... cxd4 {[%clk
0:02:59.5]} 18. Bxd4 {[%clk 0:02:30]} 18... Bc6 {[%clk 0:02:43.3]} 19. Bc3
{[%clk 0:02:27.2]} 19... Qb7 {[%clk 0:02:43.2]} 20. Rxd8+ {[%clk 0:02:14.2]}
20... Rxd8 {[%clk 0:02:42.1]} 21. Rd1 {[%clk 0:02:13.7]} 21... h6 {[%clk
0:02:38.4]} 22. Rxd8+ {[%clk 0:02:04.9]} 22... Bxd8 {[%clk 0:02:38.2]} 23. Qd3
{[%clk 0:02:02.4]} 23... Be7 {[%clk 0:02:37.2]} 24. Ne1 {[%clk 0:01:57.4]} 24...
Bxg2 {[%clk 0:02:37.1]} 25. Nxg2 {[%clk 0:01:58.3]} 25... Qa6 {[%clk 0:02:30.9]}
26. a4 {[%clk 0:01:54.3]} 26... Qb7 {[%clk 0:02:30.9]} 27. f3 {[%clk 0:01:48.9]}
27... Nd7 {[%clk 0:02:28.2]} 28. b4 {[%clk 0:01:37.6]} 28... a5 {[%clk
0:02:21.4]} 29. bxa5 {[%clk 0:01:20.6]} 29... bxa5 {[%clk 0:02:21.4]} 30. Nf4
{[%clk 0:00:57.6]} 30... Nc5 {[%clk 0:02:11.8]} 31. Qe3 {[%clk 0:00:37.4]} 31...
Nxa4 {[%clk 0:02:07.4]} 32. Bd4 {[%clk 0:00:28.5]} 32... Qb1+ {[%clk 0:02:01.5]}
33. Kg2 {[%clk 0:00:22.2]} 33... Qc2+ {[%clk 0:02:01.2]} 34. Kh3 {[%clk
0:00:19.6]} 34... Qxc4 {[%clk 0:01:58.2]} 35. Nh5 {[%clk 0:00:19.4]} 35... Bf8
{[%clk 0:01:53.2]} 36. Qe5 {[%clk 0:00:16.9]} 36... Qd5 {[%clk 0:01:48.4]} 37.
Qxd5 {[%clk 0:00:12.3]} 37... exd5 {[%clk 0:01:48.4]} 38. Nf4 {[%clk 0:00:13.2]}
38... Bc5 {[%clk 0:01:42]} 39. Bxc5 {[%clk 0:00:06.2]} 39... Nxc5 {[%clk
0:01:42.1]} 40. Nxd5 {[%clk 0:00:06.6]} 40... Kf8 {[%clk 0:01:41.5]} 41. Kg4
{[%clk 0:00:05.5]} 41... a4 {[%clk 0:01:41.7]} 42. Nb4 {[%clk 0:00:03.8]} 42...
Ke7 {[%clk 0:01:37.6]} 43. Kf4 {[%clk 0:00:03.6]} 43... Kd6 {[%clk 0:01:38.1]}
44. Ke3 {[%clk 0:00:03.7]} 44... Ke5 {[%clk 0:01:36.4]} 45. f4+ {[%clk
0:00:02.9]} 45... Kd6 {[%clk 0:01:36.7]} 46. Kd4 {[%clk 0:00:02.7]} 46... a3
{[%clk 0:01:32]} 47. Kc4 {[%clk 0:00:03.6]} 47... Na6 {[%clk 0:01:26.8]} 48. Na2
{[%clk 0:00:03.4]} 48... Ke6 {[%clk 0:01:17.4]} 49. Kb3 {[%clk 0:00:02]} 49...
Kf5 {[%clk 0:01:17.9]} 50. Nc3 {[%clk 0:00:02.1]} 50... Kg4 {[%clk 0:01:16.6]}
51. Ne4 {[%clk 0:00:02.2]} 51... Kh3 {[%clk 0:01:14.7]} 52. Nd6 {[%clk
0:00:02.3]} 52... Kxh2 {[%clk 0:01:14.2]} 53. Nxf7 {[%clk 0:00:02.2]} 53... Kxg3
{[%clk 0:01:14.8]} 54. f5 {[%clk 0:00:01.6]} 54... Kf4 {[%clk 0:01:13.8]} 55.
Nxh6 {[%clk 0:00:01.8]} 55... gxh6 {[%clk 0:01:12.1]} 56. f6 {[%clk 0:00:02.2]}
56... Nc5+ {[%clk 0:01:12.8]} 57. Kxa3 {[%clk 0:00:01.5]} 57... Ne6 {[%clk
0:01:13.4]} 58. Kb3 {[%clk 0:00:02.4]} 58... Kf5 {[%clk 0:01:13.6]} 59. Kc2
{[%clk 0:00:03.3]} 59... Kxf6 {[%clk 0:01:14.1]} 60. Kd1 {[%clk 0:00:04.2]}
60... Kg5 {[%clk 0:01:14.8]} 61. Ke2 {[%clk 0:00:05.1]} 61... Kg4 {[%clk
0:01:15.3]} 62. Kf1 {[%clk 0:00:06]} 62... h5 {[%clk 0:01:15.4]} 63. Kg1 {[%clk
0:00:06.5]} 63... h4 {[%clk 0:01:16]} 64. Kh2 {[%clk 0:00:07.4]} 64... Ng5
{[%clk 0:01:15.3]} 65. Kh1 {[%clk 0:00:08.3]} 65... Kg3 {[%clk 0:01:15.6]} 66.
Kg1 {[%clk 0:00:08.5]} 66... Ne4 {[%clk 0:01:16]} 67. Kh1 {[%clk 0:00:09.4]}
67... h3 {[%clk 0:01:16.5]} 0-1

[Event "Early-Titled-Tuesday-Blitz-December-26-2023"]
[Site "Chess.com"]
[Date "2023.12.26"]
[Round "10"]
[White "SharapovEvgeny"]
[Black "Ramla2020"]
[Result "1/2-1/2"]
[WhiteElo "2555"]
[BlackElo "2465"]
[TimeControl "180+1"]
[EndTime "9:56:01 PST"]
[Termination "Game drawn by agreement"]

1. e4 {[%clk 0:03:00.2]} 1... e5 {[%clk 0:02:59.8]} 2. Nf3 {[%clk 0:03:00.2]}
2... d6 {[%clk 0:03:00]} 3. d4 {[%clk 0:03:00]} 3... Nd7 {[%clk 0:03:00.9]} 4.
Nc3 {[%clk 0:02:59.9]} 4... c6 {[%clk 0:03:01.2]} 5. a4 {[%clk 0:02:59.2]} 5...
Be7 {[%clk 0:03:01.4]} 6. Bc4 {[%clk 0:02:59.1]} 6... Ngf6 {[%clk 0:03:01.9]} 7.
O-O {[%clk 0:02:58.8]} 7... O-O {[%clk 0:03:02.3]} 8. Re1 {[%clk 0:02:59.1]}
8... h6 {[%clk 0:02:58.6]} 9. h3 {[%clk 0:02:58]} 9... Re8 {[%clk 0:02:57.4]}
10. Be3 {[%clk 0:02:57.4]} 10... Qc7 {[%clk 0:02:56.9]} 11. Qd2 {[%clk
0:02:57.2]} 11... Nf8 {[%clk 0:02:56.3]} 12. Rad1 {[%clk 0:02:55.3]} 12... Be6
{[%clk 0:02:54.8]} 13. Bxe6 {[%clk 0:02:53.5]} 13... Nxe6 {[%clk 0:02:54.6]} 14.
d5 {[%clk 0:02:45.9]} 14... cxd5 {[%clk 0:02:54.4]} 15. Nxd5 {[%clk 0:02:45.8]}
15... Nxd5 {[%clk 0:02:54.1]} 16. Qxd5 {[%clk 0:02:43.4]} 16... Qxc2 {[%clk
0:02:49.8]} 17. Qxb7 {[%clk 0:02:40.7]} 17... Qxa4 {[%clk 0:02:45]} 18. Ra1
{[%clk 0:02:37.6]} 18... Qc4 {[%clk 0:02:21]} 19. Rec1 {[%clk 0:02:31.5]} 19...
Qe2 {[%clk 0:02:17.9]} 20. Re1 {[%clk 0:02:08.7]} 20... Qc4 {[%clk 0:02:16.4]}
21. Rec1 {[%clk 0:01:58.1]} 21... Qe2 {[%clk 0:02:16]} 22. Rxa7 {[%clk
0:01:56.8]} 22... Rab8 {[%clk 0:02:09.9]} 23. Qd7 {[%clk 0:01:48.2]} 23... Qxb2
{[%clk 0:02:09]} 24. Nh2 {[%clk 0:01:21.8]} 24... Nd4 {[%clk 0:02:01.8]} 25. Kh1
{[%clk 0:01:08.8]} 25... Ne2 {[%clk 0:01:35.5]} 26. Re1 {[%clk 0:01:06.4]} 26...
Nf4 {[%clk 0:01:30.8]} 27. Ng4 {[%clk 0:00:58]} 27... Qc2 {[%clk 0:01:15.7]} 28.
Qf5 {[%clk 0:00:48.4]} 28... h5 {[%clk 0:01:02.5]} 29. Bxf4 {[%clk 0:00:42.6]}
29... exf4 {[%clk 0:00:39.1]} 30. Qxh5 {[%clk 0:00:42]} 30... Qc5 {[%clk
0:00:31.2]} 31. Qxc5 {[%clk 0:00:38.4]} 31... dxc5 {[%clk 0:00:32.1]} 32. Rd1
{[%clk 0:00:35]} 32... c4 {[%clk 0:00:28.8]} 33. Rdd7 {[%clk 0:00:32.6]} 33...
c3 {[%clk 0:00:23.5]} 34. Rxe7 {[%clk 0:00:28.9]} 34... Rxe7 {[%clk 0:00:21.3]}
35. Rxe7 {[%clk 0:00:29.1]} 35... c2 {[%clk 0:00:18]} 36. Rc7 {[%clk 0:00:29.3]}
36... Rb1+ {[%clk 0:00:18.5]} 37. Kh2 {[%clk 0:00:29.3]} 37... c1=Q {[%clk
0:00:19.4]} 38. Rxc1 {[%clk 0:00:28.9]} 38... Rxc1 {[%clk 0:00:20.3]} 39. f3
{[%clk 0:00:26.8]} 39... f6 {[%clk 0:00:19.2]} 40. h4 {[%clk 0:00:25.4]} 40...
Kf7 {[%clk 0:00:19.1]} 41. g3 {[%clk 0:00:24.1]} 41... Rc8 {[%clk 0:00:20]} 42.
gxf4 {[%clk 0:00:24.1]} 42... Rh8 {[%clk 0:00:19.7]} 43. Kg3 {[%clk 0:00:24.4]}
43... Ra8 {[%clk 0:00:17.4]} 44. f5 {[%clk 0:00:24]} 44... Ra1 {[%clk
0:00:12.3]} 1/2-1/2

[Event "Early-Titled-Tuesday-Blitz-December-26-2023"]
[Site "Chess.com"]
[Date "2023.12.26"]
[Round "10"]
[White "JimDiGrease"]
[Black "viktorskliarov"]
[Result "1-0"]
[WhiteElo "2963"]
[BlackElo "2661"]
[TimeControl "180+1"]
[EndTime "9:56:03 PST"]
[Termination "JimDiGrease won by resignation"]

1. d4 {[%clk 0:03:00.9]} 1... Nf6 {[%clk 0:03:00]} 2. c4 {[%clk 0:03:01.4]} 2...
e6 {[%clk 0:03:00.4]} 3. Bf4 {[%clk 0:03:02]} 3... Bd6 {[%clk 0:02:57.7]} 4. Bg3
{[%clk 0:02:59.8]} 4... Bxg3 {[%clk 0:02:52.5]} 5. hxg3 {[%clk 0:03:00.7]} 5...
d6 {[%clk 0:02:52.5]} 6. Nf3 {[%clk 0:02:56.8]} 6... Nbd7 {[%clk 0:02:52.2]} 7.
Nc3 {[%clk 0:02:56.6]} 7... b6 {[%clk 0:02:50.9]} 8. e4 {[%clk 0:02:54.1]} 8...
Bb7 {[%clk 0:02:51]} 9. Bd3 {[%clk 0:02:54.5]} 9... Qe7 {[%clk 0:02:38.8]} 10.
Qe2 {[%clk 0:02:47.1]} 10... e5 {[%clk 0:02:32]} 11. d5 {[%clk 0:02:46.7]} 11...
a5 {[%clk 0:02:28.7]} 12. O-O-O {[%clk 0:02:45.7]} 12... Nc5 {[%clk 0:02:18.5]}
13. Bc2 {[%clk 0:02:45.2]} 13... O-O-O {[%clk 0:02:06.1]} 14. Nd2 {[%clk
0:02:43.5]} 14... h5 {[%clk 0:02:03.1]} 15. a3 {[%clk 0:02:41.1]} 15... Na6
{[%clk 0:01:54.2]} 16. f3 {[%clk 0:02:30.5]} 16... Rh6 {[%clk 0:01:44]} 17. b3
{[%clk 0:02:27.4]} 17... Rdh8 {[%clk 0:01:39.9]} 18. Kb2 {[%clk 0:02:20.3]}
18... Nd7 {[%clk 0:01:30.8]} 19. Nf1 {[%clk 0:02:19.3]} 19... h4 {[%clk
0:01:23.7]} 20. Ne3 {[%clk 0:02:17.9]} 20... g6 {[%clk 0:01:23.7]} 21. gxh4
{[%clk 0:01:40.6]} 21... Rxh4 {[%clk 0:01:23.1]} 22. Rxh4 {[%clk 0:01:41.5]}
22... Rxh4 {[%clk 0:01:18.9]} 23. Qf2 {[%clk 0:01:40.3]} 23... Rh5 {[%clk
0:01:10.1]} 24. Nb5 {[%clk 0:01:28.2]} 24... Kb8 {[%clk 0:00:57.1]} 25. Qd2
{[%clk 0:01:27.4]} 25... Qg5 {[%clk 0:00:36.7]} 26. Re1 {[%clk 0:01:26.6]} 26...
Rh2 {[%clk 0:00:26.5]} 27. b4 {[%clk 0:01:23.3]} 27... axb4 {[%clk 0:00:19.5]}
28. axb4 {[%clk 0:01:24.2]} 28... Nf6 {[%clk 0:00:20]} 29. Kb3 {[%clk
0:00:40.9]} 29... Nh5 {[%clk 0:00:20]} 30. Qf2 {[%clk 0:00:38.2]} 30... Nf4
{[%clk 0:00:18.7]} 31. Qg1 {[%clk 0:00:33.7]} 31... Qg3 {[%clk 0:00:15.8]} 32.
Ra1 {[%clk 0:00:19.1]} 32... Bc8 {[%clk 0:00:13.3]} 33. Nf1 {[%clk 0:00:18.6]}
33... Qxg2 {[%clk 0:00:08.8]} 34. Nxh2 {[%clk 0:00:18.3]} 34... Qd2 {[%clk
0:00:08.7]} 35. Nc3 {[%clk 0:00:12.2]} 35... b5 {[%clk 0:00:05.3]} 36. cxb5
{[%clk 0:00:10.8]} 36... Qxc3+ {[%clk 0:00:04.2]} 37. Kxc3 {[%clk 0:00:11.3]}
37... Ne2+ {[%clk 0:00:05]} 38. Kd2 {[%clk 0:00:10.9]} 38... Nxg1 {[%clk
0:00:05.9]} 39. bxa6 {[%clk 0:00:11.4]} 1-0

[Event "Early-Titled-Tuesday-Blitz-December-26-2023"]
[Site "Chess.com"]
[Date "2023.12.26"]
[Round "10"]
[White "Fischerev7"]
[Black "Lion-Al-Messi"]
[Result "0-1"]
[WhiteElo "2414"]
[BlackElo "2618"]
[TimeControl "180+1"]
[EndTime "9:56:03 PST"]
[Termination "Lion-Al-Messi won by resignation"]

1. e4 {[%clk 0:03:00.9]} 1... e6 {[%clk 0:02:59.9]} 2. d4 {[%clk 0:03:00.7]}
2... d5 {[%clk 0:03:00.3]} 3. Nc3 {[%clk 0:03:01.4]} 3... Nf6 {[%clk 0:03:00.3]}
4. Bg5 {[%clk 0:03:01]} 4... dxe4 {[%clk 0:03:00.4]} 5. Nxe4 {[%clk 0:03:00.9]}
5... Be7 {[%clk 0:03:00.9]} 6. Bxf6 {[%clk 0:03:01.4]} 6... gxf6 {[%clk
0:03:01.4]} 7. Qd2 {[%clk 0:02:57.5]} 7... f5 {[%clk 0:02:54.1]} 8. Nc3 {[%clk
0:02:54.4]} 8... c6 {[%clk 0:02:54.1]} 9. Nf3 {[%clk 0:02:54.4]} 9... Nd7 {[%clk
0:02:31.4]} 10. g3 {[%clk 0:02:54.2]} 10... Nf6 {[%clk 0:02:29.3]} 11. Bg2
{[%clk 0:02:50.4]} 11... Bd7 {[%clk 0:02:29]} 12. Ne5 {[%clk 0:02:48]} 12... Qc7
{[%clk 0:02:28.5]} 13. O-O-O {[%clk 0:02:43.2]} 13... Bd6 {[%clk 0:02:10]} 14.
f4 {[%clk 0:02:42.4]} 14... Bxe5 {[%clk 0:02:10.3]} 15. dxe5 {[%clk 0:02:29.6]}
15... Nd5 {[%clk 0:02:10.4]} 16. Ne2 {[%clk 0:02:18.8]} 16... O-O-O {[%clk
0:02:09.3]} 17. Nd4 {[%clk 0:02:16.1]} 17... Nb6 {[%clk 0:02:01.8]} 18. Kb1
{[%clk 0:02:14.2]} 18... c5 {[%clk 0:02:01.6]} 19. Nf3 {[%clk 0:02:02.7]} 19...
Bc6 {[%clk 0:01:59.6]} 20. Qc3 {[%clk 0:02:00.3]} 20... Na4 {[%clk 0:01:58.6]}
21. Qc4 {[%clk 0:01:51.5]} 21... b5 {[%clk 0:01:52]} 22. Qe2 {[%clk 0:01:43.3]}
22... Qa5 {[%clk 0:01:46.5]} 23. c3 {[%clk 0:01:29.8]} 23... Qxc3 {[%clk
0:01:35.8]} 24. Ng5 {[%clk 0:01:18]} 24... Nxb2 {[%clk 0:00:52]} 25. Qxb2 {[%clk
0:00:36]} 25... Qxb2+ {[%clk 0:00:50.3]} 26. Kxb2 {[%clk 0:00:36.9]} 26... Bxg2
{[%clk 0:00:48.6]} 27. Nxf7 {[%clk 0:00:34.2]} 27... Bxh1 {[%clk 0:00:43.9]} 28.
Nxd8 {[%clk 0:00:26.8]} 28... Rxd8 {[%clk 0:00:40]} 29. Rxh1 {[%clk 0:00:27]}
29... Rd2+ {[%clk 0:00:40.1]} 30. Kb3 {[%clk 0:00:26.6]} 30... a5 {[%clk
0:00:40.2]} 31. a3 {[%clk 0:00:26.2]} 31... c4+ {[%clk 0:00:38]} 32. Kc3 {[%clk
0:00:25.6]} 32... Rd3+ {[%clk 0:00:37.7]} 33. Kb2 {[%clk 0:00:25.4]} 33... b4
{[%clk 0:00:36.1]} 34. axb4 {[%clk 0:00:25.2]} 34... axb4 {[%clk 0:00:37]} 35.
Rc1 {[%clk 0:00:24.8]} 35... Rd2+ {[%clk 0:00:37.2]} 36. Ka1 {[%clk 0:00:18.2]}
36... c3 {[%clk 0:00:36.6]} 37. Rb1 {[%clk 0:00:18.5]} 37... c2 {[%clk
0:00:25.6]} 38. Rc1 {[%clk 0:00:17.5]} 38... Rd1 {[%clk 0:00:19.3]} 39. Kb2
{[%clk 0:00:13.9]} 39... Rxc1 {[%clk 0:00:19.6]} 40. Kxc1 {[%clk 0:00:14.6]}
40... b3 {[%clk 0:00:20.2]} 41. h3 {[%clk 0:00:12.9]} 41... h5 {[%clk
0:00:19.6]} 42. g4 {[%clk 0:00:08.8]} 42... hxg4 {[%clk 0:00:18]} 43. h4 {[%clk
0:00:08.8]} 43... g3 {[%clk 0:00:18.1]} 44. h5 {[%clk 0:00:08.9]} 44... g2
{[%clk 0:00:18.5]} 0-1

[Event "Early-Titled-Tuesday-Blitz-December-26-2023"]
[Site "Chess.com"]
[Date "2023.12.26"]
[Round "10"]
[White "rachidhuilda"]
[Black "TheFireChess"]
[Result "0-1"]
[WhiteElo "2359"]
[BlackElo "2516"]
[TimeControl "180+1"]
[EndTime "9:56:08 PST"]
[Termination "TheFireChess won by resignation"]

1. d4 {[%clk 0:02:15]} 1... f5 {[%clk 0:02:59.4]} 2. g3 {[%clk 0:02:13.9]} 2...
Nf6 {[%clk 0:02:59.7]} 3. Bg2 {[%clk 0:02:14.4]} 3... g6 {[%clk 0:03:00.3]} 4.
c4 {[%clk 0:02:13.8]} 4... Bg7 {[%clk 0:03:00.8]} 5. Nc3 {[%clk 0:02:14.4]} 5...
O-O {[%clk 0:03:01.3]} 6. Nh3 {[%clk 0:02:14.8]} 6... d6 {[%clk 0:03:02.2]} 7.
d5 {[%clk 0:02:14.8]} 7... c6 {[%clk 0:03:01.2]} 8. Nf4 {[%clk 0:02:14.7]} 8...
e5 {[%clk 0:02:59.7]} 9. dxe6 {[%clk 0:02:14.2]} 9... g5 {[%clk 0:03:00.1]} 10.
Nd3 {[%clk 0:01:52.8]} 10... h6 {[%clk 0:03:00.1]} 11. O-O {[%clk 0:01:26.1]}
11... Bxe6 {[%clk 0:02:57.7]} 12. Qa4 {[%clk 0:01:18.9]} 12... Nbd7 {[%clk
0:02:48.9]} 13. Rd1 {[%clk 0:01:18.9]} 13... Nb6 {[%clk 0:02:40.3]} 14. Qc2
{[%clk 0:01:09.5]} 14... Nxc4 {[%clk 0:02:33.3]} 15. b3 {[%clk 0:01:09]} 15...
Nb6 {[%clk 0:02:29.9]} 16. Bb2 {[%clk 0:00:58]} 16... Qe7 {[%clk 0:02:28.9]} 17.
Rac1 {[%clk 0:00:52.9]} 17... Rae8 {[%clk 0:02:26.2]} 18. e3 {[%clk 0:00:53.2]}
18... d5 {[%clk 0:02:18.4]} 19. Na4 {[%clk 0:00:52.7]} 19... Nxa4 {[%clk
0:02:13.3]} 20. bxa4 {[%clk 0:00:53.6]} 20... Ne4 {[%clk 0:02:11.4]} 21. Rb1
{[%clk 0:00:48.4]} 21... Bc8 {[%clk 0:02:06.9]} 22. Qb3 {[%clk 0:00:40]} 22...
Nc5 {[%clk 0:01:46]} 23. Nxc5 {[%clk 0:00:37.8]} 23... Qxc5 {[%clk 0:01:46.9]}
24. Bxg7 {[%clk 0:00:37.4]} 24... Kxg7 {[%clk 0:01:45.9]} 25. Qb4 {[%clk
0:00:24.2]} 25... Qxb4 {[%clk 0:01:43.8]} 26. Rxb4 {[%clk 0:00:25.1]} 26... Rf7
{[%clk 0:01:38.1]} 27. Rdb1 {[%clk 0:00:25.2]} 27... Ree7 {[%clk 0:01:30.2]} 28.
Bf3 {[%clk 0:00:25.4]} 28... Rc7 {[%clk 0:01:19.8]} 29. Rc1 {[%clk 0:00:18.9]}
29... Be6 {[%clk 0:01:19.5]} 30. Rb2 {[%clk 0:00:15.9]} 30... Kf6 {[%clk
0:01:19.7]} 31. Be2 {[%clk 0:00:15.5]} 31... Ke5 {[%clk 0:01:05]} 32. Rbc2
{[%clk 0:00:15.5]} 32... Kd6 {[%clk 0:01:02]} 33. Bd3 {[%clk 0:00:15.3]} 33...
f4 {[%clk 0:00:59.8]} 34. exf4 {[%clk 0:00:15]} 34... gxf4 {[%clk 0:00:59.7]}
35. Kg2 {[%clk 0:00:15.2]} 35... fxg3 {[%clk 0:00:58.5]} 36. hxg3 {[%clk
0:00:15.1]} 36... c5 {[%clk 0:00:57.9]} 37. Rh1 {[%clk 0:00:14.8]} 37... c4
{[%clk 0:00:57.6]} 38. Be2 {[%clk 0:00:13.6]} 38... Rf6 {[%clk 0:00:57.8]} 39.
Bf3 {[%clk 0:00:09.5]} 39... Kc5 {[%clk 0:00:52.3]} 40. Rd1 {[%clk 0:00:08.9]}
40... b6 {[%clk 0:00:46]} 41. Re2 {[%clk 0:00:08.4]} 41... Rd7 {[%clk
0:00:45.2]} 42. Re5 {[%clk 0:00:08.2]} 42... Rd6 {[%clk 0:00:43.1]} 43. Be2
{[%clk 0:00:05.1]} 43... a6 {[%clk 0:00:41.9]} 44. f4 {[%clk 0:00:05.6]} 44...
b5 {[%clk 0:00:41.7]} 45. Kf3 {[%clk 0:00:05.3]} 45... Bf7 {[%clk 0:00:40.4]}
46. g4 {[%clk 0:00:04.7]} 46... Rfe6 {[%clk 0:00:38.5]} 47. Rxe6 {[%clk
0:00:03.1]} 47... Rxe6 {[%clk 0:00:38]} 48. f5 {[%clk 0:00:03.3]} 48... Re8
{[%clk 0:00:37.3]} 49. Rh1 {[%clk 0:00:03.3]} 49... d4 {[%clk 0:00:35.8]} 50.
Rxh6 {[%clk 0:00:02.8]} 50... d3 {[%clk 0:00:36.4]} 51. Bf1 {[%clk 0:00:02.9]}
51... d2 {[%clk 0:00:34.6]} 52. Bg2 {[%clk 0:00:03.8]} 52... d1=Q+ {[%clk
0:00:34.5]} 0-1

[Event "Early-Titled-Tuesday-Blitz-December-26-2023"]
[Site "Chess.com"]
[Date "2023.12.26"]
[Round "10"]
[White "Let_it_be_1"]
[Black "MIss_MIaMI"]
[Result "0-1"]
[WhiteElo "2545"]
[BlackElo "2439"]
[TimeControl "180+1"]
[EndTime "9:56:11 PST"]
[Termination "MIss_MIaMI won by resignation"]

1. e4 {[%clk 0:03:00.9]} 1... c5 {[%clk 0:03:00.1]} 2. Nf3 {[%clk 0:03:00.6]}
2... e6 {[%clk 0:03:00.8]} 3. d4 {[%clk 0:03:00.3]} 3... cxd4 {[%clk 0:03:01.7]}
4. Nxd4 {[%clk 0:03:00.8]} 4... a6 {[%clk 0:03:02.4]} 5. Nc3 {[%clk 0:03:00.5]}
5... Qc7 {[%clk 0:03:02.8]} 6. Be2 {[%clk 0:03:00.2]} 6... Bb4 {[%clk
0:03:03.3]} 7. Qd3 {[%clk 0:02:52.3]} 7... Nf6 {[%clk 0:03:00.7]} 8. O-O {[%clk
0:02:49.8]} 8... O-O {[%clk 0:02:47.2]} 9. Bd2 {[%clk 0:02:49.3]} 9... Bc5
{[%clk 0:02:35.3]} 10. Be3 {[%clk 0:02:45.1]} 10... Be7 {[%clk 0:02:29.8]} 11.
f4 {[%clk 0:02:44.2]} 11... d6 {[%clk 0:02:28.8]} 12. a4 {[%clk 0:02:34.9]}
12... b6 {[%clk 0:02:26.3]} 13. Bf3 {[%clk 0:02:32.5]} 13... Bb7 {[%clk
0:02:26.6]} 14. e5 {[%clk 0:02:26.9]} 14... dxe5 {[%clk 0:02:20.8]} 15. fxe5
{[%clk 0:02:24.2]} 15... Nfd7 {[%clk 0:02:14.5]} 16. Bxb7 {[%clk 0:02:12.2]}
16... Qxb7 {[%clk 0:02:15.4]} 17. Bf4 {[%clk 0:02:12.6]} 17... Rd8 {[%clk
0:02:04.1]} 18. Rad1 {[%clk 0:01:58.5]} 18... Nf8 {[%clk 0:01:51.8]} 19. Kh1
{[%clk 0:01:54.6]} 19... Ng6 {[%clk 0:01:51.2]} 20. Bg3 {[%clk 0:01:52.5]} 20...
Bc5 {[%clk 0:01:43.8]} 21. Qc4 {[%clk 0:01:15.6]} 21... Nd7 {[%clk 0:01:38.4]}
22. Nxe6 {[%clk 0:01:14.4]} 22... fxe6 {[%clk 0:01:25]} 23. Qxe6+ {[%clk
0:01:13.9]} 23... Kh8 {[%clk 0:01:25.5]} 24. Rf7 {[%clk 0:01:13.5]} 24... Ndf8
{[%clk 0:00:40.3]} 25. Qxg6 {[%clk 0:01:01.5]} 25... Nxg6 {[%clk 0:00:41]} 26.
Rxb7 {[%clk 0:00:58.1]} 26... Rxd1+ {[%clk 0:00:37.4]} 27. Nxd1 {[%clk
0:00:57.7]} 27... Rf8 {[%clk 0:00:36.4]} 28. h4 {[%clk 0:00:27.5]} 28... Rf1+
{[%clk 0:00:35.7]} 29. Kh2 {[%clk 0:00:28]} 29... Rxd1 {[%clk 0:00:33.5]} 30. h5
{[%clk 0:00:28.4]} 30... Ne7 {[%clk 0:00:28.5]} 31. b4 {[%clk 0:00:24.2]} 31...
Bxb4 {[%clk 0:00:26.8]} 32. Rxb6 {[%clk 0:00:24.2]} 32... a5 {[%clk 0:00:25.4]}
33. c4 {[%clk 0:00:19]} 33... Rc1 {[%clk 0:00:23.6]} 34. Rb8+ {[%clk 0:00:14.9]}
34... Ng8 {[%clk 0:00:22.9]} 35. Rc8 {[%clk 0:00:15.8]} 35... h6 {[%clk
0:00:21.4]} 36. e6 {[%clk 0:00:15.6]} 36... Kh7 {[%clk 0:00:22]} 37. Bf4 {[%clk
0:00:13.2]} 37... Re1 {[%clk 0:00:18.4]} 38. Rc6 {[%clk 0:00:11.6]} 38... Ne7
{[%clk 0:00:18.9]} 39. Rb6 {[%clk 0:00:10.5]} 39... Nf5 {[%clk 0:00:16.7]} 40.
Rb5 {[%clk 0:00:09]} 40... Nd4 {[%clk 0:00:16.3]} 41. c5 {[%clk 0:00:05.3]}
41... Nxb5 {[%clk 0:00:14.7]} 42. axb5 {[%clk 0:00:04.4]} 42... Bxc5 {[%clk
0:00:15.2]} 0-1